bitfinex/quotes_ETHUSD_20241217
["timestamp","ask_amount","ask_price","bid_price","bid_amount"]
[1734450337305,1.02325809,3952.1,3951.1,1.5395]
[1734450338324,3.14652202,3952.0,3951.1,1.5395]
[1734450338490,0.84930557,3951.9,3951.1,1.5395]
[1734450338832,0.55,3952.0,3951.1,1.5395]
[1734450338987,1.57325809,3951.8,3951.1,1.5395]
[1734450339189,2.12485468,3951.7,3951.1,1.5395]
[1734450339487,0.31945581,3951.9,3951.1,1.5395]
[1734450339488,0.55,3951.9,3951.1,1.5395]
[1734450339692,2.4231688,3951.9,3951.1,1.5395]
[1734450339888,0.84991071,3951.8,3951.1,1.5395]
[1734450340113,1.57325809,3951.9,3951.1,1.5395]
[1734450340337,3.54527033,3951.8,3951.1,1.5395]
[1734450340645,1.02325809,3951.6,3951.1,1.5395]
[1734450340847,3.66109379,3951.7,3951.1,1.5395]
[1734450340848,3.14946474,3951.5,3951.1,1.5395]
[1734450341149,3.14946474,3951.4,3951.1,1.5395]
[1734450341458,3.61782428,3951.3,3949.3,1.5395]
[1734450341669,3.61782428,3951.3,3949.2,4.59395222]
[1734450341670,1.02325809,3951.1,3949.8,1.5395]
[1734450341955,0.55,3951.2,3949.8,1.5395]
[1734450342120,0.55,3951.0,3949.8,1.5395]
[1734450342443,0.85011654,3950.9,3949.8,1.5395]
[1734450342748,1.57325809,3951.1,3949.8,1.5395]
[1734450342970,0.55,3950.9,3949.8,1.5395]
[1734450343412,0.55,3951.0,3949.8,1.5395]
[1734450343607,1.02325809,3951.2,3950.0,1.5395]
[1734450344208,4.66592719,3951.8,3950.0,1.5395]
[1734450344209,1.02325809,3951.3,3950.0,1.5395]
[1734450344831,0.84940188,3951.2,3950.0,1.5395]
[1734450345047,1.02325809,3951.4,3950.2,2.87562966]
[1734450345213,1.02325809,3952.0,3950.4,1.5395]
[1734450345520,1.02325809,3952.2,3950.4,1.5395]
[1734450346065,3.14599834,3952.2,3951.1,1.462]
[1734450346279,1.02325809,3952.6,3951.3,1.462]
[1734450346414,1.02325809,3952.6,3951.0,2.87562966]
[1734450346415,1.02325809,3952.6,3951.5,1.462]
[1734450346619,0.18349017,3952.5,3951.5,1.462]
[1734450346815,0.18349017,3952.4,3951.5,1.462]
[1734450347010,0.18349017,3952.7,3951.5,1.462]
[1734450347213,0.18349017,3952.6,3951.5,1.462]
[1734450347563,0.55,3952.4,3951.5,1.462]
[1734450347746,0.55,3952.4,3950.2,1.462]
[1734450347747,1.57325809,3952.0,3950.2,1.462]
[1734450347913,1.57325809,3951.7,3950.2,1.462]
[1734450348115,2.57865809,3951.4,3950.2,1.462]
[1734450348317,0.55,3951.2,3950.2,1.462]
[1734450348552,0.55,3951.0,3950.2,1.462]
[1734450348752,0.18349017,3950.9,3950.2,1.462]
[1734450349173,1.03255483,3950.9,3950.2,1.462]
[1734450349377,0.18349017,3950.8,3950.2,1.462]
[1734450349541,0.18349017,3950.7,3950.2,1.462]
[1734450349738,0.18349017,3950.6,3950.2,1.6082]
[1734450349957,0.55,3951.3,3950.2,1.6082]
[1734450350474,0.18345967,3951.2,3950.2,1.6082]
[1734450350739,0.18343119,3951.1,3950.2,1.6082]
[1734450350944,0.55,3951.6,3950.2,1.6082]
[1734450351186,0.18344401,3951.5,3950.4,1.462]
[1734450351977,0.18344401,3951.4,3950.4,1.462]
[1734450352278,1.53488714,3952.1,3950.4,1.462]
[1734450352279,1.02325809,3952.1,3950.4,1.462]
[1734450352487,0.18353163,3952.0,3950.4,1.462]
[1734450352639,0.18353163,3951.9,3950.4,1.462]
[1734450352998,0.18353163,3951.8,3950.6,1.462]
[1734450353137,0.18353163,3952.1,3950.6,1.462]
[1734450353338,0.18353163,3952.0,3950.6,1.462]
[1734450353575,0.18353163,3952.1,3950.6,1.462]
[1734450353761,0.18353163,3952.0,3950.6,1.462]
[1734450353962,0.18353163,3951.9,3950.8,1.462]
[1734450354147,0.18353163,3951.8,3950.8,1.462]
[1734450354347,0.18353163,3951.7,3950.8,1.462]
[1734450354569,0.18353163,3951.6,3950.8,1.462]
[1734450354749,0.18353163,3951.5,3950.8,1.462]
[1734450354950,0.18353163,3951.4,3950.8,1.462]
[1734450355234,0.18353163,3951.3,3950.8,1.6082]
[1734450355481,1.02325809,3952.0,3950.8,1.6082]
[1734450355775,3.33018703,3951.9,3950.8,1.6082]
[1734450355948,1.03290859,3951.8,3950.8,1.6082]
[1734450356147,0.18356169,3951.7,3950.8,1.6082]
[1734450356477,0.18356169,3951.6,3950.8,1.6082]
[1734450356672,1.02325809,3952.0,3950.9,0.16082]
[1734450356889,0.18357245,3951.9,3951.0,1.462]
[1734450357374,1.03262422,3951.8,3951.0,1.462]
[1734450357577,0.18357245,3951.7,3951.0,1.462]
[1734450357737,0.18357245,3951.6,3951.0,1.462]
[1734450357941,0.18357245,3951.5,3951.0,1.462]
[1734450358138,0.18357245,3951.4,3951.0,1.462]
[1734450358372,0.18357245,3951.3,3951.0,1.462]
[1734450358581,1.57325809,3951.8,3951.0,1.462]
[1734450358582,0.18357245,3951.2,3951.0,1.462]
[1734450358735,1.02325809,3951.8,3951.0,1.462]
[1734450358962,0.43922892,3951.7,3951.0,1.462]
[1734450359175,0.1834144,3951.6,3951.0,1.462]
[1734450359698,0.1834144,3951.8,3951.0,1.462]
[1734450359918,1.02325809,3951.9,3951.0,1.462]
[1734450359919,0.1834144,3951.7,3951.0,1.462]
[1734450360204,0.1834144,3951.6,3951.0,1.462]
[1734450360519,0.1834144,3951.5,3951.0,1.6082]
[1734450360663,1.53488714,3952.1,3951.0,1.6082]
[1734450360664,1.02325809,3952.1,3951.0,1.6082]
[1734450360858,0.18338534,3952.0,3951.0,1.462]
[1734450361299,1.02325809,3952.2,3951.0,1.462]
[1734450361300,0.18338534,3951.9,3951.0,1.462]
[1734450361505,1.02325809,3952.2,3951.0,1.462]
[1734450361506,0.18338534,3951.8,3951.0,1.462]
[1734450361804,0.18336883,3951.7,3951.0,1.462]
[1734450361971,0.18336883,3952.1,3951.0,1.462]
[1734450362301,0.18337556,3952.0,3951.0,1.462]
[1734450362507,0.18337556,3951.9,3951.0,1.462]
[1734450362680,0.18337556,3951.8,3951.0,1.462]
[1734450362883,0.18337556,3951.7,3951.0,1.462]
[1734450363175,1.02325809,3952.2,3951.0,1.462]
[1734450363379,0.45184619,3952.1,3951.0,1.462]
[1734450363582,0.18337846,3952.0,3951.0,1.462]
[1734450363997,2.4797084,3952.0,3951.0,1.462]
[1734450364208,1.0321025,3951.9,3951.0,1.462]
[1734450364372,1.02325809,3952.0,3951.0,1.462]
[1734450364373,0.18337846,3951.8,3951.0,1.462]
[1734450364592,6.28286822,3952.4,3951.0,1.462]
[1734450364593,0.18337846,3951.7,3951.0,1.6082]
[1734450364776,1.02325809,3952.5,3951.0,1.6082]
[1734450364980,1.02325809,3952.6,3951.0,1.6082]
[1734450365322,1.53488714,3952.8,3951.4,3.0]
[1734450365323,3.55311809,3952.8,3951.4,3.0]
[1734450365614,3.55311809,3952.8,3951.0,0.1462]
[1734450365615,1.02325809,3952.6,3951.5,1.6068]
[1734450365817,1.3173487,3952.5,3951.5,1.6068]
[1734450366037,0.46812136,3952.5,3951.5,1.6068]
[1734450366377,1.02325809,3952.6,3951.5,1.6068]
[1734450366577,1.02325809,3952.7,3951.5,1.6068]
[1734450366777,3.14655865,3952.7,3951.5,1.6068]
[1734450366993,2.12330056,3952.6,3951.5,1.6068]
[1734450367290,2.12330056,3952.6,3950.8,3.0]
[1734450367291,2.53068,3951.6,3950.5,1.5071]
[1734450367497,2.53017,3952.3,3950.5,1.5071]
[1734450367498,2.12171283,3951.5,3950.5,1.5071]
[1734450367728,1.02325809,3951.7,3950.5,1.5071]
[1734450367729,2.53081,3951.3,3950.5,1.5071]
[1734450367891,2.53101,3951.0,3950.5,1.5071]
[1734450368233,3.60988695,3950.9,3948.8,1.0571667]
[1734450368379,2.53132,3950.6,3948.8,1.0571667]
[1734450368573,1.02325809,3950.7,3948.6,3.6688984]
[1734450368780,1.02325809,3950.5,3948.6,3.6688984]
[1734450369431,2.80728814,3950.7,3948.6,3.6688984]
[1734450369432,1.02325809,3950.6,3948.6,3.6688984]
[1734450369579,2.29565909,3950.7,3948.7,0.36688984]
[1734450369779,1.272401,3950.5,3948.7,0.36688984]
[1734450369982,1.272401,3950.5,3948.7,3.36688984]
[1734450370278,2.53156,3950.2,3948.7,3.36688984]
[1734450370529,2.53156,3950.2,3947.9,1.0571667]
[1734450370530,3.55489809,3950.0,3948.1,3.5399097]
[1734450370711,2.34140998,3950.1,3948.1,3.5399097]
[1734450370712,3.1452172,3949.9,3948.1,3.5399097]
[1734450370878,0.84808614,3949.8,3948.1,3.5399097]
[1734450371085,1.02325809,3949.9,3948.2,1.5071]
[1734450371279,0.8480489,3949.8,3948.2,1.5071]
[1734450371521,4.05074523,3950.1,3948.4,1.5071]
[1734450371722,3.14264086,3950.0,3948.4,1.5071]
[1734450371918,1.02325809,3949.8,3948.4,1.5071]
[1734450372160,2.11938277,3949.9,3949.0,1.5071]
[1734450372161,1.02325809,3949.9,3949.0,1.5071]
[1734450372367,2.04651619,3950.6,3949.0,1.5071]
[1734450372368,1.02325809,3950.6,3949.1,0.02085921]
[1734450372528,2.56313635,3950.8,3949.3,1.5071]
[1734450372728,2.55814523,3951.0,3949.3,1.5071]
[1734450372729,1.53488714,3951.0,3949.3,1.5071]
[1734450373057,1.02325809,3951.1,3949.3,1.5071]
[1734450373361,1.02325809,3951.1,3949.2,0.50678689]
[1734450373362,0.126952,3951.1,3949.5,3.0]
[1734450373562,0.126952,3951.1,3949.6,1.5071]
[1734450373728,0.126952,3951.1,3949.7,0.80470097]
[1734450374062,0.126952,3951.1,3949.8,1.5071]
[1734450374364,2.12183555,3951.5,3949.8,1.5071]
[1734450374667,2.12183555,3951.5,3950.5,3.0]
[1734450374956,2.12183555,3951.5,3950.6,1.5071]
[1734450375127,2.12183555,3951.5,3950.8,1.5071]
[1734450375918,1.02325809,3951.9,3950.8,1.5071]
[1734450375919,1.02325809,3952.0,3950.8,1.5071]
[1734450376125,1.02325809,3952.2,3950.8,1.5071]
[1734450376324,1.02325809,3952.5,3950.9,0.02530583]
[1734450376520,0.84869955,3952.4,3951.1,1.5665]
[1734450376825,1.02325809,3952.8,3951.5,3.0]
[1734450377021,1.5699,3953.5,3951.6,1.5665]
[1734450377022,1.02325809,3953.0,3951.6,1.5665]
[1734450377254,0.8487753,3952.9,3951.6,1.5665]
[1734450377453,3.14516619,3952.8,3951.6,1.5665]
[1734450377620,0.8487753,3952.7,3951.6,1.5665]
[1734450377979,0.18720334,3952.6,3951.6,1.5665]
[1734450378120,2.78036143,3952.6,3951.6,1.5665]
[1734450378465,1.02325809,3952.3,3951.6,1.5665]
[1734450378770,3.14478719,3952.2,3951.6,1.5665]
[1734450379093,2.1215291,3952.1,3951.6,1.54620972]
[1734450379274,1.02325809,3952.3,3951.6,1.54620972]
[1734450379429,1.29779295,3952.3,3951.6,1.54620972]
[1734450379623,0.84868327,3952.2,3951.6,1.54620972]
[1734450379822,1.02325809,3952.4,3951.6,1.54620972]
[1734450380069,2.04651619,3952.8,3951.6,1.54620972]
[1734450380070,1.02325809,3952.8,3951.6,1.54620972]
[1734450380361,3.61641619,3953.2,3951.6,1.54620972]
[1734450380362,1.15032252,3953.1,3951.6,1.54620972]
[1734450380569,2.54788112,3953.0,3951.6,1.54620972]
[1734450380719,3.57113921,3953.0,3951.6,1.54620972]
[1734450380926,0.84894806,3952.9,3951.6,1.54620972]
[1734450381165,1.44876906,3953.0,3951.6,1.54620972]
[1734450381462,2.12160221,3952.9,3951.6,1.54620972]
[1734450381676,0.36974357,3952.8,3951.6,1.54620972]
[1734450381838,1.44876906,3953.0,3951.6,1.54620972]
[1734450382044,3.14442559,3952.9,3951.6,1.54620972]
[1734450382232,2.1211675,3952.8,3951.6,1.54620972]
[1734450382586,0.42551097,3953.0,3951.6,1.54620972]
[1734450382587,1.44876906,3953.0,3951.6,1.54620972]
[1734450382732,2.12043543,3952.9,3951.6,1.54620972]
[1734450382934,0.52311561,3952.9,3951.7,1.72112097]
[1734450383375,0.12706443,3953.1,3951.7,1.72112097]
[1734450385935,2.52974,3953.0,3951.7,1.5665]
[1734450386138,0.12706443,3953.1,3951.7,1.5665]
[1734450386139,4.15032252,3953.1,3951.7,1.5665]
[1734450386358,3.0,3952.9,3951.7,1.5665]
[1734450386589,0.12706443,3953.1,3951.7,1.5665]
[1734450386768,0.57202225,3953.0,3951.7,1.5665]
[1734450387672,3.57202225,3953.0,3951.7,1.5665]
[1734450387870,0.57202225,3953.0,3951.7,1.5665]
[1734450388073,3.0,3952.9,3951.7,1.5665]
[1734450388787,2.52979,3952.9,3951.7,1.5665]
[1734450388963,0.42521348,3952.8,3951.7,1.5665]
[1734450389285,0.84771393,3952.7,3951.7,1.5665]
[1734450389464,1.44847157,3952.8,3951.7,1.5665]
[1734450389650,0.84776885,3952.7,3951.7,1.5665]
[1734450389861,1.4702,3952.6,3951.3,1.5605]
[1734450390054,2.53039,3952.0,3951.3,1.5605]
[1734450390256,2.53046,3951.9,3951.3,1.5605]
[1734450390478,4.02325809,3952.1,3950.0,3.66652018]
[1734450390670,0.84771789,3952.0,3950.0,3.94339764]
[1734450391005,0.84771789,3952.0,3950.5,3.5399097]
[1734450391307,0.4870976,3951.9,3950.5,3.5399097]
[1734450392609,2.53052,3951.8,3950.5,3.5399097]
[1734450393170,3.84838531,3951.7,3950.5,3.5399097]
[1734450393415,1.51035569,3951.9,3950.1,1.5441]
[1734450393573,5.12090352,3951.8,3950.1,1.5441]
[1734450393769,2.06453433,3951.7,3950.3,1.5441]
[1734450393999,1.21617292,3951.7,3950.3,1.5441]
[1734450394368,1.02325809,3951.9,3950.3,1.5441]
[1734450394571,3.14453372,3951.9,3950.3,1.5441]
[1734450394808,3.0,3951.8,3950.3,1.5441]
[1734450395009,0.84851025,3951.7,3950.3,1.5441]
[1734450395211,1.02325809,3951.9,3950.3,1.5441]
[1734450395519,3.80885052,3951.8,3950.4,1.5441]
[1734450395687,0.848873,3951.7,3950.4,1.5441]
[1734450395886,0.848873,3951.7,3950.5,3.5399097]
[1734450396077,0.848873,3951.7,3950.6,1.5441]
[1734450396279,0.80885052,3951.8,3950.6,1.5441]
[1734450396503,0.48321086,3951.7,3950.6,1.5441]
[1734450399289,0.60975408,3951.7,3950.6,1.5441]
[1734450400699,0.12654322,3951.7,3950.6,1.5441]
[1734450402908,4.14980131,3951.7,3950.6,1.5441]
[1734450403108,4.02325809,3951.5,3950.6,1.5441]
[1734450403315,0.84924589,3951.4,3950.6,1.5441]
[1734450403521,1.02325809,3951.6,3950.6,1.5441]
[1734450403729,0.72418884,3951.5,3950.6,1.5441]
[1734450404175,0.12654322,3951.7,3950.6,1.5441]
[1734450404992,0.55,3951.6,3950.6,1.5441]
[1734450405193,6.70135745,3951.6,3950.6,1.5441]
[1734450405508,0.85115071,3951.5,3950.6,1.5441]
[1734450405705,4.57325809,3951.6,3950.6,1.5441]
[1734450405706,3.0,3951.6,3950.6,1.5441]
[1734450405897,0.12654322,3951.7,3950.6,1.5441]
[1734450406091,0.56846884,3951.6,3950.6,1.5441]
[1734450406528,0.12654322,3951.7,3950.6,1.5441]
[1734450406835,2.57428347,3952.4,3949.5,3.0]
[1734450406836,1.02325809,3952.3,3951.2,3.0]
[1734450407044,1.02325809,3952.4,3951.4,1.1394]
[1734450407520,0.1247576,3952.9,3951.4,1.1394]
[1734450407725,0.38905028,3952.8,3951.4,1.1394]
[1734450407880,0.85196411,3952.7,3951.4,1.1394]
[1734450408083,0.38905028,3952.8,3951.4,1.1394]
[1734450410023,0.1247576,3952.9,3951.4,1.1394]
[1734450412028,2.6545376,3952.9,3951.4,1.1394]
[1734450412334,2.53019,3952.3,3951.4,1.1394]
[1734450412486,0.85139442,3952.2,3951.4,1.1394]
[1734450412690,2.12850036,3952.2,3951.4,1.1394]
[1734450412914,2.53042,3952.0,3950.2,0.12927816]
[1734450413117,1.45831393,3952.1,3950.1,3.5399097]
[1734450413437,0.85127547,3952.0,3950.1,3.5399097]
[1734450413926,0.43505584,3952.1,3950.2,3.0]
[1734450414147,0.51872839,3952.0,3950.3,0.65399097]
[1734450414987,0.8511644,3951.9,3950.3,0.65399097]
[1734450415589,0.8512892,3951.8,3950.3,0.65399097]
[1734450415827,0.85128465,3951.7,3950.3,0.65399097]
[1734450416001,1.02325809,3951.9,3949.8,1.1759]
[1734450416201,3.15140232,3951.9,3949.8,1.1759]
[1734450416528,0.85125769,3951.8,3950.6,3.5399097]
[1734450416693,2.04651619,3952.3,3950.8,1.1759]
[1734450416694,1.02325809,3952.3,3950.8,1.1759]
[1734450416887,1.02325809,3952.4,3950.8,1.1759]
[1734450417087,1.02325809,3952.6,3951.0,1.1759]
[1734450417597,3.15197657,3952.5,3951.0,1.1759]
[1734450417792,2.12871848,3952.4,3951.1,3.5399097]
[1734450418025,1.02325809,3952.5,3951.2,1.1759]
[1734450418698,0.85200316,3952.5,3951.2,1.1759]
[1734450418908,1.02325809,3952.8,3951.7,3.0]
[1734450419094,1.02325809,3952.9,3951.8,1.1759]
[1734450419509,0.85265872,3952.8,3951.8,1.1759]
[1734450419835,2.13170523,3952.7,3951.8,1.1759]
[1734450419990,0.85264455,3952.6,3951.8,1.1759]
[1734450420190,0.18759026,3952.5,3951.8,1.1759]
[1734450420896,1.02325809,3952.2,3951.8,1.1759]
[1734450421229,1.02325809,3952.2,3950.7,1.1759]
[1734450421398,2.81373879,3952.4,3950.7,1.1759]
[1734450421399,1.02325809,3952.1,3950.7,1.1759]
[1734450421592,1.02325809,3952.0,3950.7,1.1759]
[1734450421903,1.53209561,3951.9,3950.7,1.1759]
[1734450422106,1.02325809,3951.7,3950.7,1.1759]
[1734450422310,0.85256776,3951.6,3950.7,1.1759]
[1734450422630,1.02325809,3951.8,3950.7,1.1759]
[1734450422789,1.02325809,3951.5,3950.7,1.1759]
[1734450422995,0.72206784,3951.4,3950.7,1.1759]
[1734450423244,3.8770991,3951.4,3950.7,1.1759]
[1734450423545,2.13177317,3951.3,3950.7,1.1759]
[1734450423751,1.02325809,3951.2,3949.7,1.1344]
[1734450424041,1.02325809,3951.1,3949.7,1.1344]
[1734450424320,3.7439431,3951.0,3949.7,1.1344]
[1734450424574,0.85272653,3950.9,3949.7,1.1344]
[1734450424906,0.18429014,3950.8,3949.7,1.1344]
[1734450425032,0.18429014,3950.7,3949.7,3.0]
[1734450425232,0.18429014,3950.6,3949.8,1.1344]
[1734450425577,1.02325809,3951.3,3950.0,1.1344]
[1734450425780,0.18431376,3951.2,3950.0,1.1344]
[1734450426076,0.18431376,3951.1,3950.0,1.1344]
[1734450426292,0.18431376,3951.0,3950.0,1.1344]
[1734450426489,0.18431376,3950.9,3950.0,1.1344]
[1734450426653,1.02325809,3951.5,3950.2,1.1344]
[1734450426854,0.18440975,3951.4,3950.2,1.1344]
[1734450427384,1.20766784,3951.3,3950.2,1.1344]
[1734450427607,2.31804121,3951.2,3950.2,1.1344]
[1734450427897,1.03801323,3951.1,3950.2,1.1344]
[1734450428035,2.17099237,3951.7,3950.2,1.1344]
[1734450428036,1.24429992,3951.0,3950.2,1.1344]
[1734450428235,0.18440975,3950.9,3950.2,1.1344]
[1734450428793,0.85402425,3950.8,3950.2,1.1344]
[1734450428936,0.18440975,3950.7,3950.2,1.1344]
[1734450429263,0.20612713,3951.0,3950.2,1.1344]
[1734450429264,1.03834711,3950.6,3950.2,1.1344]
[1734450429465,1.02325809,3950.8,3950.2,1.1344]
[1734450429466,0.18440975,3950.5,3950.2,1.1344]
[1734450429668,1.74101427,3951.0,3950.2,1.1344]
[1734450429669,1.02325809,3951.0,3950.2,1.1344]
[1734450429991,0.18445762,3950.9,3950.2,1.1344]
[1734450430149,1.03844239,3950.9,3950.2,1.1344]
[1734450430356,0.18445762,3950.8,3950.3,1.22841311]
[1734450430559,1.02325809,3951.5,3950.3,1.2031]
[1734450430879,1.65936332,3951.7,3949.9,1.2031]
[1734450430880,0.18442372,3951.4,3949.9,1.2031]
[1734450431100,1.14773427,3951.7,3950.1,1.2031]
[1734450431101,0.18442372,3951.3,3950.1,1.2031]
[1734450431239,1.20768181,3951.6,3950.1,1.2031]
[1734450431441,0.12447618,3951.7,3950.1,1.2031]
[1734450431442,1.02325809,3951.4,3950.1,1.2031]
[1734450431736,1.02325809,3951.1,3950.1,1.2031]
[1734450431970,0.18442372,3951.0,3950.1,1.2031]
[1734450432155,0.2742569,3950.9,3950.1,1.2031]
[1734450432374,0.18442372,3950.8,3950.1,1.2031]
[1734450432548,1.2814734,3950.7,3950.1,1.2031]
[1734450432878,0.18442372,3950.6,3950.1,1.2031]
[1734450433176,0.18442372,3950.5,3950.1,1.2031]
[1734450433396,0.18442372,3950.4,3950.1,1.2031]
[1734450433539,1.02325809,3950.8,3950.1,1.2031]
[1734450433740,1.02325809,3950.9,3950.1,1.2031]
[1734450434088,0.18441864,3950.8,3950.1,1.2031]
[1734450434255,0.18441864,3951.1,3950.1,1.2031]
[1734450434585,1.02325809,3950.6,3950.1,1.2031]
[1734450434799,2.06187888,3950.5,3948.7,3.56522581]
[1734450435079,2.31994566,3950.4,3948.7,3.5399097]
[1734450435284,1.02325809,3950.5,3948.7,3.5399097]
[1734450435285,1.03862079,3950.3,3948.7,3.66705904]
[1734450435581,0.18436984,3950.2,3948.7,3.66705904]
[1734450435793,1.02325809,3950.6,3948.8,3.6926007]
[1734450436081,0.18414107,3950.5,3948.8,3.6672856]
[1734450436385,0.18414107,3950.5,3948.8,3.69260201]
[1734450436555,0.18414107,3950.4,3949.3,3.0]
[1734450436883,2.57990594,3951.3,3949.3,3.0]
[1734450436884,1.02325809,3951.0,3949.3,3.0]
[1734450437185,0.43978517,3950.9,3949.4,0.65399097]
[1734450437481,2.06002373,3950.8,3949.4,0.65399097]
[1734450437697,1.20722874,3950.7,3948.9,3.0]
[1734450437857,0.18397065,3950.6,3949.0,0.2982]
[1734450438058,0.18397065,3950.5,3949.0,0.2982]
[1734450438258,0.18397065,3950.4,3949.0,0.2982]
[1734450438460,0.18397065,3950.3,3949.0,0.2982]
[1734450438661,0.18397065,3950.2,3949.2,0.2982]
[1734450438982,1.02325809,3950.5,3949.2,0.2982]
[1734450439192,1.20714135,3950.4,3949.2,0.2982]
[1734450439412,1.02325809,3950.1,3949.2,0.2982]
[1734450439569,2.53142,3950.4,3949.2,0.2982]
[1734450439570,2.53171,3949.9,3949.2,0.2982]
[1734450439770,1.03541115,3949.8,3949.2,0.2982]
[1734450439964,1.03541115,3949.8,3947.7,3.5399097]
[1734450439965,1.03549002,3949.7,3948.9,0.2982]
[1734450440272,1.02325809,3949.9,3948.9,0.2982]
[1734450440273,3.33616263,3949.6,3948.9,0.2982]
[1734450440520,3.56686351,3949.5,3947.3,0.2982]
[1734450440817,3.56686351,3949.5,3947.2,3.5399097]
[1734450440818,2.77030828,3949.4,3947.7,0.2982]
[1734450440969,1.0347845,3949.3,3947.7,0.2982]
[1734450441307,0.18377711,3949.2,3947.7,0.2982]
[1734450441510,0.18377711,3949.1,3947.7,0.2982]
[1734450441815,3.93030711,3949.1,3947.7,0.2982]
[1734450442107,4.06174754,3949.0,3947.7,0.2982]
[1734450442278,0.18377711,3948.9,3947.7,0.2982]
[1734450442877,0.18377711,3948.8,3947.7,0.2982]
[1734450443077,0.18377711,3948.7,3947.7,0.2982]
[1734450443296,3.74657,3949.1,3947.7,0.2982]
[1734450443504,0.55,3948.9,3947.7,0.2982]
[1734450443683,2.71569971,3948.8,3947.7,0.2982]
[1734450444009,0.18328971,3948.7,3947.7,0.2982]
[1734450444211,2.71577971,3948.7,3947.7,0.2982]
[1734450444422,0.73328971,3948.6,3947.7,0.2982]
[1734450444574,0.73328971,3948.6,3946.4,3.5399097]
[1734450444575,3.04247768,3948.5,3946.4,3.5399097]
[1734450444775,0.18328971,3948.4,3946.5,0.2982]
[1734450445005,1.2143,3948.3,3946.5,0.2982]
[1734450445212,2.53299,3947.9,3946.5,0.2982]
[1734450445409,0.18291177,3947.8,3946.5,0.2982]
[1734450445724,0.73291177,3947.7,3946.5,0.2982]
[1734450445927,0.55,3948.2,3946.5,0.2982]
[1734450446224,0.5090878,3948.2,3946.5,0.2982]
[1734450446426,2.53286,3948.1,3946.5,0.2982]
[1734450446593,1.2143,3947.9,3946.5,0.2982]
[1734450446826,0.73278774,3947.8,3946.5,0.2982]
[1734450447006,0.55,3947.6,3946.5,0.2982]
[1734450447325,1.2143,3947.9,3946.5,0.2982]
[1734450448145,0.55,3947.8,3946.5,0.2982]
[1734450448305,0.55,3947.6,3946.5,0.2982]
[1734450448735,0.17643,3947.7,3946.5,0.2982]
[1734450449954,0.55,3947.6,3946.5,0.2982]
[1734450450244,0.17643,3947.7,3946.5,0.2982]
[1734450451495,0.12763248,3947.6,3946.5,0.2982]
[1734450451738,0.55,3947.5,3946.5,0.2982]
[1734450451939,0.33872425,3947.4,3946.5,0.2982]
[1734450452503,0.12763248,3947.6,3946.5,3.8381097]
[1734450452744,0.12603468,3948.2,3946.6,0.2982]
[1734450452942,0.12603468,3948.2,3945.7,0.12966747]
[1734450452943,0.12603468,3948.2,3946.7,0.2982]
[1734450453942,2.71512823,3948.1,3946.7,0.2982]
[1734450454106,2.53288,3948.1,3946.7,0.2982]
[1734450454324,0.44812977,3948.0,3946.7,0.2982]
[1734450454520,0.26589147,3948.0,3946.7,0.2982]
[1734450454777,0.55,3948.1,3946.7,0.2982]
[1734450455268,0.12603468,3948.2,3946.7,0.2982]
[1734450455446,1.85421553,3948.1,3946.7,0.2982]
[1734450455648,0.55,3947.9,3946.7,0.2982]
[1734450455833,0.55,3947.7,3946.7,0.2982]
[1734450456039,0.55,3947.9,3946.7,0.2982]
[1734450456363,0.55,3947.7,3946.7,0.2982]
[1734450456863,0.420494,3947.8,3946.7,0.2982]
[1734450457174,0.18227361,3947.7,3946.7,0.2982]
[1734450457339,0.420494,3947.8,3946.7,0.2982]
[1734450457547,0.18226721,3947.7,3946.7,0.2982]
[1734450457852,0.49583733,3947.7,3946.7,0.2982]
[1734450458161,0.18228253,3947.6,3946.7,0.2982]
[1734450458362,0.31357012,3947.7,3946.7,0.2982]
[1734450458662,0.31357012,3947.7,3945.5,3.0]
[1734450458663,0.18231918,3947.6,3945.5,3.0]
[1734450458821,0.18231918,3947.6,3945.5,3.12760913]
[1734450459023,0.34495133,3947.5,3945.6,0.66675188]
[1734450460084,1.122,3948.1,3946.3,2.8804188]
[1734450460279,0.1824456,3948.0,3946.4,3.0253072]
[1734450460602,2.8804188,3948.0,3946.2,3.0]
[1734450460751,2.8804188,3948.0,3945.7,3.0]
[1734450460752,0.18243378,3947.9,3945.7,3.0]
[1734450460927,2.53314,3947.7,3945.7,3.0]
[1734450461124,0.45399116,3947.6,3945.8,0.65471707]
[1734450461383,0.18243378,3947.5,3946.0,2.8804188]
[1734450461663,2.53299,3947.9,3946.1,3.0]
[1734450461978,0.18260114,3947.8,3946.1,3.0]
[1734450462177,2.71566114,3947.8,3946.1,3.0]
[1734450462464,0.45426091,3947.7,3946.2,0.58804188]
[1734450462670,0.1826948,3947.6,3946.2,0.58804188]
[1734450462963,0.18264937,3947.5,3946.2,0.58804188]
[1734450463273,0.18264937,3947.4,3946.2,0.58804188]
[1734450463432,0.18264937,3947.3,3946.2,0.58804188]
[1734450463633,0.27156611,3947.7,3946.3,0.64684607]
[1734450463936,0.18275624,3947.6,3946.3,0.64684607]
[1734450464157,0.18275624,3947.6,3946.4,0.0092]
[1734450464654,5.53266,3948.5,3946.3,0.64684607]
[1734450464655,1.122,3948.7,3947.1,0.0092]
[1734450464827,0.18287357,3948.6,3947.4,3.0]
[1734450465027,0.18287357,3948.5,3947.7,2.8804188]
[1734450465355,1.122,3949.4,3947.8,0.0092]
[1734450465690,0.18304749,3949.3,3947.8,0.0092]
[1734450466005,0.18304749,3949.2,3947.8,0.0092]
[1734450466300,2.53282,3948.2,3947.1,0.0092]
[1734450466450,0.43632949,3948.1,3947.1,0.0092]
[1734450466650,0.18304749,3948.0,3947.1,0.0092]
[1734450467194,0.18304749,3947.9,3947.1,0.0092]
[1734450467364,0.18304749,3947.8,3947.1,0.0092]
[1734450467550,0.18304749,3947.7,3947.1,0.0092]
[1734450467894,0.18304749,3947.6,3947.1,0.0092]
[1734450468096,0.253282,3948.1,3947.1,0.0092]
[1734450468097,0.18304749,3947.5,3947.1,0.0092]
[1734450468267,0.18304749,3947.4,3947.1,0.0092]
[1734450468447,1.1137,3949.0,3947.1,0.0092]